Cogmind - Beta 13 @@@ ROGUE MODE // 2024.05.31 @ 18:07:43 Player: aRandomVoice Result: Core destroyed Performance ------------- Evolutions (2) 1000 Regions Visited (3) 600 Robots Destroyed (26) 130 Value Destroyed (775) 775 Prototype IDs (1) 20 Alien Tech Used (0) 0 Bonus (200) 200 TOTAL SCORE: 2725 Bonus ------- Pacifist 200 Cogmind --------- Core Integrity 0/550 Matter 49/300 Energy 13/100 System Corruption 0% Temperature Critical (689) Movement Core (500) Ox9 Location -8/Materials Parts ------- > --- POWER (2) -------- (None) > --- PROPULSION (4) --- Improved VTOL Module Improved VTOL Module > --- UTILITY (3) ------ Large Storage Unit > --- WEAPON (2) ------- Heavy Ion Cannon > --- INVENTORY (15) --- Cooled Ion Engine Small Storage Unit Improved Medium Armor Plating Improved Medium Armor Plating Arc Projector Arc Projector Light Assault Rifle Light Assault Rifle Grenade Launcher Peak State ------------ > --- POWER ------------ Ion Engine Improved Ion Engine > --- PROPULSION ------- Improved VTOL Module Improved VTOL Module Improved VTOL Module Improved VTOL Module > --- UTILITY ---------- Large Storage Unit Hardened Medium Armor Plating Improved Medium Armor Plating > --- WEAPON ----------- Arc Projector Particle Cannon > --- INVENTORY -------- Cooled Ion Engine Small Storage Unit Improved Medium Armor Plating Improved Medium Armor Plating Arc Projector Heavy Ion Cannon Heavy Ion Cannon Light Assault Rifle Light Assault Rifle Grenade Launcher Scythe [Rating: 36] Favorites ----------- Power Light Ion Engine Engine Light Ion Engine Propulsion Improved VTOL Module Leg Aluminum Leg Hover Unit Airjet Flight Unit Improved VTOL Module Utility Large Storage Unit Device Sensor Array Storage Large Storage Unit Protection Improved Medium Armor Plating Weapon Particle Cannon Energy Gun Medium Laser Energy Cannon Particle Cannon Ballistic Gun Heavy Assault Rifle Slashing Weapon Scythe Build | -11 -10 -9 -8 ------- Run | Yrd Mat Mat Mat Slots Evolved 4 | . . 2 2 Power 1 | . . 1 . Propulsion 2 | . . . 2 Utility 1 | . . 1 . Weapon . | . . . . Parts Attached 30 | 6 2 10 12 Power 4 | 1 . 2 1 Engine 4 | 1 . 2 1 Core . | . . . . Reactor . | . . . . Propulsion 11 | 2 . 4 5 Treads . | . . . . Leg 2 | 2 . . . Wheel . | . . . . Hover 5 | . . 4 1 Flight 4 | . . . 4 Utility 6 | 1 2 1 2 Device 1 | . 1 . . Storage 2 | 1 1 . . Processor . | . . . . Hackware . | . . . . Protection 3 | . . 1 2 Artifact . | . . . . Weapon 9 | 2 . 3 4 Energy Gun 2 | 1 . . 1 Energy Cannon 4 | . . 2 2 Ballistic Gun 2 | 1 . 1 . Ballistic Cannon . | . . . . Launcher . | . . . . Special Weapon . | . . . . Impact Weapon . | . . . . Slashing Weapon 1 | . . . 1 Piercing Weapon . | . . . . Special Melee Weapon . | . . . . Unidentified Prototypes 1 | . . . 1 Parts Lost 9 | . . 4 5 Power 2 | . . 1 1 Propulsion 2 | . . 1 1 Utility 3 | . . 1 2 Weapon 2 | . . 1 1 Highest Loss Streak 5 | . . 3 5 To Critical Strikes . | . . . . Average Slot Usage (%) 77 | . 95 68 85 Engine 9 | . 14 5 15 Leg 6 | . 28 5 . Hover 8 | . . 14 . Flight 9 | . . . 32 Device 6 | . 10 8 . Storage 10 | . 14 11 9 Protection 4 | . . 2 9 Energy Gun 6 | . 14 6 3 Energy Cannon 7 | . . 6 13 Ballistic Gun 6 | . 14 8 . Naked Turns . | . . . . Heaviest Build 55 | 11 27 51 55 Greatest Support 24 | 20 20 20 24 Greatest Overweight (x) 16 | . 1 5 16 Average Overweight (x) 1 | . . 1 1 Largest Inventory Capacity 15 | 8 15 15 15 Average Capacity 13 | 6 9 15 15 Most Carried 14 | 1 3 14 13 Average Carried 8 | . 1 9 10 Final Capacity 15 | 8 15 15 15 Final Carried 9 | 1 3 9 9 Class Distribution -------------------- 100% | Mutant Dominant Class ---------------- Mutant | -10/Materials Mutant | -9/Materials Mutant | -8/Materials Resources | -11 -10 -9 -8 ----------- Run | Yrd Mat Mat Mat Matter Collected 400 | 83 . 188 129 Remotely . | . . . . Salvage Created 968 | . . 431 537 Parts 60 | . . 34 26 Haulers Intercepted . | . . . . Recyclers Shooed . | . . . . Parts Field Recycled . | . . . . Retrieved Matter . | . . . . Parts Self-Destructed . | . . . . Prevented . | . . . . Kills | -11 -10 -9 -8 ------- Run | Yrd Mat Mat Mat Combat Hostiles Destroyed 22 | . . 14 8 Guns 6 | . . 6 . Cannons 14 | . . 8 6 AOE 2 | . . . 2 Classes Destroyed 8 | . . 4 4 Builder 1 | . . . 1 Recycler 1 | . . . 1 Operator 1 | . . . 1 Watcher 1 | . . 1 . Swarmer 7 | . . 7 . Grunt 7 | . . 3 4 Duelist 1 | . . . 1 Sentry 7 | . . 4 3 Best Kill Streak 7 | . . 4 7 Combat Bots Only 4 | . . 4 3 Max Kills in Single Turn 2 | . . 2 2 Gunslinging 1 | . . 1 . Exploded 2 | . . . 2 Melee . | . . . . Uniques/NPCs Destroyed . | . . . . Combat | -11 -10 -9 -8 -------- Run | Yrd Mat Mat Mat Hostile Shots Fired 143 | . . 73 70 Missed 31 | . . 17 14 Damage Taken 2029 | . . 662 1367 Core 812 | . . 204 608 Absorbed by Shields . | . . . . Regen/Repaired (Parts) 18 | . . 18 . Core Remaining (%) 83 | 100 100 49 . Volleys Fired 73 | . 1 42 30 Largest 2 | . 2 2 2 Hottest 136 | . 70 136 136 Shots Fired 118 | . 2 72 44 Gun 57 | . 2 48 7 Cannon 61 | . . 24 37 Launcher . | . . . . Special . | . . . . Kinetic 39 | . 1 38 . Thermal 72 | . 1 34 37 Explosive . | . . . . Electromagnetic 7 | . . . 7 Robot Hit Streak 12 | . . 6 12 Robot Miss Streak 4 | . 2 4 3 Penetration Max . | . . . . Secondary Targets 2 | . . 2 . Max Gunslinging Chain 1 | . . 1 . Shots Hit Robots 72 | . . 43 29 Core Hits 33 | . . 18 15 Critical Kills . | . . . . Critical Parts Destroyed . | . . . . Critical Strikes 2 | . . 2 . Burn 2 | . . 2 . Melee Attacks . | . . . . Impact . | . . . . Slashing . | . . . . Piercing . | . . . . Sneak Attacks . | . . . . Combat Hostiles . | . . . . Follow-up Attacks . | . . . . Damage Inflicted 1475 | . 4 733 738 Guns 472 | . . 380 92 Cannons 910 | . . 351 559 Explosions 87 | . . . 87 Melee . | . . . . Ramming 6 | . 4 2 . Kinetic 316 | . . 316 . Thermal 1061 | . . 415 646 Explosive . | . . . . Electromagnetic 92 | . . . 92 Impact . | . . . . Slashing . | . . . . Piercing . | . . . . Highest Corruption . | . . . . Average Corruption . | . . . . Corruption Purged . | . . . . Corruption Blocked . | . . . . Overload Shots . | . . . . Overflow Damage 11 | . . . 11 Projectiles 11 | . . . 11 Explosions . | . . . . Melee . | . . . . Knockbacks . | . . . . Impact . | . . . . Kinetic . | . . . . Secondary . | . . . . Self-Inflicted Damage 57 | . . 1 56 Shots 1 | . . . 1 Rammed 1 | . . 1 . Targets Rammed 2 | . 1 1 . Kicked 1 | . 1 . . Crushed . | . . . . Highest Temperature 890 | . 30 117 890 Average Temperature 220 | . 18 35 356 Received Heat Transfer 663 | . . 213 450 Effects 47 | . . . 47 Shutdowns 8 | . . . 8 Energy Bleed 4 | . . . 4 Interference 1 | . . . 1 Matter Decay 7 | . . . 7 Short Circuit 6 | . . . 6 Damage (minor) 1 | . . . 1 Damage (major) 16 | . . . 16 Damage (core) 4 | . . . 4 Siege Activations . | . . . . Robots Corrupted . | . . . . Combat Hostiles . | . . . . Parts Fried . | . . . . Impact Corruptions . | . . . . Robots Melted . | . . . . Combat Hostiles . | . . . . Parts Melted 6 | . . 1 5 Heat Transferred 1950 | . . 962 988 Parts Sabotaged . | . . . . Parts Stolen . | . . . . Parts Stripped . | . . . . Power Chain Reactions 1 | . . . 1 Alert | -11 -10 -9 -8 ------- Run | Yrd Mat Mat Mat Peak Influence 351 | . 26 312 351 Initial 98 | . . 10 98 Average 136 | . 10 153 187 Maximum Alert Level 1 | . . 1 1 Low Security (%) 75 | 100 100 77 57 Level 1 24 | . . 22 42 Level 2 . | . . . . Level 3 . | . . . . Level 4 . | . . . . Level 5 . | . . . . High Security . | . . . . Max Security . | . . . . Squads Dispatched 2 | . . 1 1 Investigation 1 | . . 1 . Extermination . | . . . . Reinforcement 1 | . . . 1 Assault . | . . . . Garrison . | . . . . Intercept . | . . . . Searches Triggered . | . . . . Construction Impeded . | . . . . Haulers Reinforced . | . . . . Active Scanning Responses . | . . . . Cargo Convoy Interrupts . | . . . . Stealth | -11 -10 -9 -8 --------- Run | Yrd Mat Mat Mat Distress Signals 4 | . . 4 . Communications Jammed . | . . . . Distress Signals . | . . . . Times Spotted 35 | . 1 23 11 Peak Tracking Total 7 | . 1 5 7 Tactical Retreats 4 | . . 4 . Traps | -11 -10 -9 -8 ------- Run | Yrd Mat Mat Mat Traps Triggered . | . . . . Indirectly . | . . . . Trap Hack Attempts . | . . . . Triggered . | . . . . Disarmed . | . . . . Reprogrammed 3 | . . 3 . Reused . | . . . . Traps Extracted . | . . . . Installed . | . . . . Triggered . | . . . . Machines | -11 -10 -9 -8 ---------- Run | Yrd Mat Mat Mat Machines Disabled 1 | . . . 1 Max in Single Turn 1 | . . . 1 Machines Repaired . | . . . . Machines Dismantled . | . . . . Machines Sabotaged . | . . . . Overloaded Fab Kills . | . . . . Hacking | -11 -10 -9 -8 --------- Run | Yrd Mat Mat Mat Machines Accessed 4 | . 1 2 1 Terminals 3 | . 1 1 1 Fabricators . | . . . . Repair Stations 1 | . . 1 . Recycling Units . | . . . . Scanalyzers . | . . . . Garrison Access . | . . . . Total Hacks 14 | . 4 8 2 Successful 8 | . 2 5 1 Failed 6 | . 2 3 1 Catastrophic . | . . . . Database Lockouts . | . . . . Manual . | . . . . Terminals 11 | . 4 5 2 Fabricators . | . . . . Repair Stations 3 | . . 3 . Recycling Units . | . . . . Scanalyzers . | . . . . Garrison Access . | . . . . Terminal Hacks 6 | . 2 3 1 Locate Traps 2 | . 1 1 . Reprogram Traps 1 | . . 1 . Transport Status 1 | . . 1 . Registered Components 1 | . 1 . . Zone Layout 1 | . . . 1 Fabricator Hacks . | . . . . Repair Station Hacks 2 | . . 2 . Scan Component 1 | . . 1 . Repair 1 | . . 1 . Recycling Unit Hacks . | . . . . Scanalyzer . | . . . . Garrison Access Hacks . | . . . . Unauthorized Hacks . | . . . . Terminals . | . . . . Fabricators . | . . . . Repair Stations . | . . . . Recycling Units . | . . . . Scanalyzers . | . . . . Garrison Access . | . . . . Data Cores Recovered . | . . . . Used . | . . . . Hacking Detections 4 | . 1 2 1 Full Trace Events 1 | . . 1 . Feedback Events . | . . . . Feedback Blocked . | . . . . Robot Schematics Acquired . | . . . . Robots Built . | . . . . Authchips . | . . . . Time . | . . . . Total Robot Build Rating . | . . . . Part Schematics Acquired . | . . . . Parts Built . | . . . . Authchips . | . . . . Time . | . . . . Total Part Build Rating . | . . . . Parts Repaired 1 | . . 1 . Time 38 | . . 38 . Parts Recycled . | . . . . Recycled Matter . | . . . . Retrieved Matter . | . . . . Retrieved Components . | . . . . Parts Scanalyzed . | . . . . Part Schematics Acquired . | . . . . Parts Damaged . | . . . . Bothacking | -11 -10 -9 -8 ------------ Run | Yrd Mat Mat Mat Used RIF Installer . | . . . . Robots Hacked . | . . . . Non-combat . | . . . . Combat . | . . . . Robot Hacks Applied . | . . . . Relay Couplers Released . | . . . . Fabnet Peak Effective % . | . . . . Robots Rewired . | . . . . Allies Hacked . | . . . . Hacks Repelled . | . . . . Allies | -11 -10 -9 -8 -------- Run | Yrd Mat Mat Mat Total Allies . | . . . . Largest Group . | . . . . Highest-Rated Group . | . . . . Highest-Rated Ally . | . . . . Total Orders . | . . . . Ally Attacks . | . . . . Total Damage . | . . . . Kills . | . . . . Allies Corrupted . | . . . . Allies Melted . | . . . . Intel | -11 -10 -9 -8 ------- Run | Yrd Mat Mat Mat Robot Analysis Total . | . . . . Derelict Logs Recovered . | . . . . Drone Launches . | . . . . Drone Recoveries . | . . . . Exploration | -11 -10 -9 -8 ------------- Run | Yrd Mat Mat Mat Turns Passed 1114 | 61 144 584 325 Spaces Moved 561 | 43 101 281 136 Core 5 | 4 . . 1 Treads . | . . . . Legs 198 | 39 101 58 . Wheels . | . . . . Hover 230 | . . 223 7 Flight 128 | . . . 128 Fastest Speed 50 | 50 120 116 96 Average Speed 147 | 113 129 155 154 Slowest Speed 850 | 120 190 360 850 Overloaded Moves . | . . . . Propulsion Burnouts . | . . . . Robots Hopped . | . . . . Cave-ins Triggered . | . . . . Exploration Rate (%) 17 | 4 19 30 16 Regions Visited 3 Branch Regions . Pre-discovered Areas . | . . . . Known Exits Taken . | . . . . Unknown Exits Taken 3 | 1 1 1 . Scrap Searched . | . . . . Spaces Dug . | . . . . Terrain Destroyed 7 | . . . 7 Melee . | . . . . Projectile 3 | . . . 3 AOE 4 | . . . 4 Terrain Rammed . | . . . . Walls Destroyed . | . . . . Machines Disabled . | . . . . Actions | -11 -10 -9 -8 --------- Run | Yrd Mat Mat Mat Total 737 | 55 113 356 213 Wait 20 | . 6 6 8 Move 558 | 42 100 280 136 Hop . | . . . . Pick Up 39 | 7 3 14 15 Fast Attach . | . . . . Attach 26 | 6 1 7 12 Detach . | . . . . Swap 4 | . 1 3 . Drop 15 | . . 3 12 Fire 73 | . 1 42 30 Melee . | . . . . Ram 1 | . . 1 . Kick 1 | . 1 . . Crush . | . . . . Escape Stasis . | . . . . Rewire . | . . . . Trap . | . . . . Miscellaneous . | . . . . Route ------- -11/Scrapyard -10/Materials -9/Materials (discovered 2 exits: *Mat x2) -8/Materials History --------- Turn | Location | Event 8 | -11/Scrapyard | Discovered new exit (range 15) 62 | -11/Scrapyard | Entered Materials 164 | -10/Materials | Discovered new exit (range 12) 206 | -10/Materials | Entered another Materials area 206 | -9/Materials | Evolved 2 slots: Power x1, Utility x1 301 | -9/Materials | Build established: Mutant 405 | -9/Materials | Discovered new exit (range 15) 634 | -9/Materials | Repaired Airjet 681 | -9/Materials | Core integrity fell below 50% 711 | -9/Materials | Lost 3 parts (1n1u1w) 757 | -9/Materials | Discovered new exit (range 9) 790 | -9/Materials | Entered another Materials area 790 | -8/Materials | Evolved 2 slots: Propulsion x2 1086 | -8/Materials | Core integrity fell below 50% 1112 | -8/Materials | Core integrity fell below 20% 1116 | -8/Materials | Core destroyed Last Messages --------------- 01101_ U-05 Engineer builds a Wall. 01102_ Imp. VTOL Module broken. 01102_ Overheating: Short circuit. 01103_ Overheating: Matter decay (-9). 01104_ G-47 Trooper destroyed. 01105_ Overheating: Energy bleed (-2). 01106_ Imp. VTOL Module broken. 01106_ Overheating: Short circuit. 01106_ Dropped Hvy. Ion Cannon. 01107_ Overheating: Matter decay (-13). 01111_ Overheating: Matter decay (-7). 01112_ Overheating: Core damaged (-110). 01113_ Overheating: Lrg. Storage Unit damaged (-63). 01113_ Overheating: Hvy. Ion Cannon damaged (-37). 01113_ Overheating: Broken Imp. VTOL Module damaged (-8). 01114_ Broken Imp. VTOL Module destroyed. 01116_ Overheating: Core damaged (-88). Map ----- +----------------------------------------------------+ | ?????????????????????????????????????????????????? | | ?????????????????????????????????????????????????? | | ?????????????????????????????????????????????????? | | ?????????????????????????????????????????????????? | | ?????????????????????????????????????????????????? | | ?????????????????????????????????????????????????? | | ?????????????????????????????????????????????????? | | ?????????????????????????????????????????????????? | | ?????????????????????????????????????????????????? | | ?????????????????????????????????????????????????? | | ?????????????????????????????????????????????????? | | ?????????????????????????????????????????????????? | | ?????????????????????????????????????????????????? | | ?????????????????????????????????????????????????? | | ?????????????????????????????????????????????????? | | ?????????????????????????????????????????????????? | | ?????????????????????????????????????????????????? | | ?????????????????????????????????????????????????? | | ?????????????????????????????????????????????????? | | ?????????????????????????????????????????????????? | | ????????????????????##???????????????????????????? | | ????????????????????# ###########????????????????? | | ?????????????????????##[ #????????????????? | | ??????????????????????#=%* #????????????????? | | ??????????####+####+#"#]=]] #????????????????? | | ??????? =%* !#[=@* """ #????????????????? | | ??????? =!| %=g=%S!=""" #????????????????? | | ??????? ![%#=!" """ #????????????????? | | ????????# ########!*#!%""= #????????????????? | | ???????????????????##%#=!! #????????????????? | | ????????????????????#*########+#############?????? | | ????????????????????#????????# ## #?????? | | ?????????????????????????????# ## """ #??????? | | ?????????????????????????????# ## """ #??????? | | ?????????????????????????????# ## """ #??????? | | ????????????????????????????## ## [! #??????? | | ????????????????????????????# + "T" ! #??????? | | ????????????????????????????# # """ #??????? | | ????????????????????????????# + #??????? | | ????????????????????????????# ##+########??????? | | ????????????????????????????# # #?????????? | | ????????????????????????????# # #?????????? | | ????????????????????????????# # """ #?????????? | | ????????????????????????????# + """ #?????????? | | ????????????????????????????# # """ #?????????? | | ????????????????????????????# # #?????????? | | ????????????????????????????# ########?????????? | | ????????????????????????????# #????????????????? | | ????????????????????????????# #????????????????? | | ????????????????????????????# #??########??????? | +----------------------------------------------------+ Best States ------------- Heat Dissipation 31 Energy Generation 17 Energy Capacity 415 Matter Stores 153 Matter Capacity 300 Sight Range 16 Robot Scan Range 14 Terrain Scan Density 10 Armor Coverage 600 Evasion (%) 55 Item Schematics ----------------- None Robot Schematics ------------------ None Fabricated ------------ Nothing Alien Tech Used ----------------- None Achievements -------------- None Challenges ------------ None Game ------ Seed MetafiberResetCorpse Manual? 0 Play Time 00:12:18 Cumulative 9.7 hours Start 2024.05.31 @ 17:56:04 End 2024.05.31 @ 18:07:43 Sessions 1 Manual Loads 0 Difficulty Rogue Special Mode None Game No. 23 Rogue 17 Adventurer 6 Explorer 0 Win Type - Total 0 Types 0/0/0/0/0/0/0/0/0 Lore% 5 Gallery% 17 Achievement% 14 Wizard Run 0 Options --------- Layout 1 ASCII 0 Keyboard 0 Movement Mouse Keybinds 0 Fullscreen 2 Font 24/Crisp Map View 50x35 Zoom Use 0% Tactical HUD 1 Map Filters NONE Filters NONE Steam 1 RUN: 6cf2a6ea-755b-433f-af58-d01e0885ad54